[Event "*** Titled Tuesday Blitz"]
[Site "Chess.com"]
[Date "2021.03.02"]
[Round "3"]
[White "guillembaches"]
[Black "platy3"]
[Result "0-1"]
[WhiteElo "2458"]
[BlackElo "2826"]
[TimeControl "180+1"]
[EndTime "10:28:55 PST"]
[Termination "platy3 won on time"]

1. e4 {[%clk 0:03:00.9]} 1... e5 {[%clk 0:02:52]} 2. Nf3 {[%clk 0:03:00.9]} 2...
Nc6 {[%clk 0:02:51.4]} 3. Nc3 {[%clk 0:03:01.5]} 3... Nf6 {[%clk 0:02:51.2]} 4.
d4 {[%clk 0:03:01.8]} 4... exd4 {[%clk 0:02:52.1]} 5. Nxd4 {[%clk 0:03:02.3]}
5... Bb4 {[%clk 0:02:53]} 6. Nxc6 {[%clk 0:03:02.6]} 6... bxc6 {[%clk
0:02:51.9]} 7. Bd3 {[%clk 0:03:03.1]} 7... O-O {[%clk 0:02:52.5]} 8. O-O {[%clk
0:03:02.6]} 8... d5 {[%clk 0:02:53]} 9. Bd2 {[%clk 0:03:02.9]} 9... Bg4 {[%clk
0:02:44.6]} 10. f3 {[%clk 0:03:01]} 10... Bh5 {[%clk 0:02:44.3]} 11. e5 {[%clk
0:02:55.3]} 11... Nd7 {[%clk 0:02:41.2]} 12. Qe1 {[%clk 0:02:45]} 12... Nc5
{[%clk 0:02:31.2]} 13. f4 {[%clk 0:02:21.9]} 13... f5 {[%clk 0:02:21.6]} 14. a3
{[%clk 0:01:59.1]} 14... Bxc3 {[%clk 0:02:14.9]} 15. Bxc3 {[%clk 0:01:57.6]}
15... Ne6 {[%clk 0:02:15.8]} 16. h3 {[%clk 0:01:39.1]} 16... c5 {[%clk
0:02:13.6]} 17. b3 {[%clk 0:01:34.8]} 17... Bg6 {[%clk 0:01:53]} 18. Qf2 {[%clk
0:01:29.1]} 18... Qd7 {[%clk 0:01:50.2]} 19. Rad1 {[%clk 0:01:25.8]} 19... Rad8
{[%clk 0:01:40.6]} 20. Kh2 {[%clk 0:01:24.4]} 20... c6 {[%clk 0:01:39.2]} 21.
Be1 {[%clk 0:01:18.7]} 21... Qe7 {[%clk 0:01:33.9]} 22. Qd2 {[%clk 0:01:13.9]}
22... Bh5 {[%clk 0:01:32.4]} 23. Rb1 {[%clk 0:01:01.9]} 23... c4 {[%clk
0:01:23]} 24. Be2 {[%clk 0:00:53.7]} 24... c3 {[%clk 0:01:23]} 25. Qd3 {[%clk
0:00:49.8]} 25... Bxe2 {[%clk 0:01:23.5]} 26. Qxe2 {[%clk 0:00:50.7]} 26... d4
{[%clk 0:01:24.1]} 27. b4 {[%clk 0:00:44.2]} 27... Qd7 {[%clk 0:01:24]} 28. Bh4
{[%clk 0:00:39.9]} 28... Rc8 {[%clk 0:01:21.3]} 29. g4 {[%clk 0:00:32.8]} 29...
Qd5 {[%clk 0:01:18.2]} 30. Rf2 {[%clk 0:00:14.4]} 30... Qe4 {[%clk 0:01:16.7]}
31. Re1 {[%clk 0:00:11.9]} 31... Qxe2 {[%clk 0:01:14.9]} 32. Rexe2 {[%clk
0:00:12.8]} 32... Rf7 {[%clk 0:01:12.8]} 33. Kg3 {[%clk 0:00:11.9]} 33... c5
{[%clk 0:01:12.9]} 34. bxc5 {[%clk 0:00:11.1]} 34... Rxc5 {[%clk 0:01:13.8]} 35.
Re1 {[%clk 0:00:11.3]} 35... Rb5 {[%clk 0:01:12]} 36. Rff1 {[%clk 0:00:10.7]}
36... Rb2 {[%clk 0:01:12.3]} 37. Rb1 {[%clk 0:00:10.5]} 37... Rxc2 {[%clk
0:01:06.3]} 38. Rb8+ {[%clk 0:00:03.9]} 38... Rf8 {[%clk 0:01:06.9]} 39. Rfb1
{[%clk 0:00:03.9]} 39... Rd2 {[%clk 0:01:02.7]} 40. gxf5 {[%clk 0:00:03]} 40...
c2 {[%clk 0:00:39]} 41. fxe6 {[%clk 0:00:03.3]} 41... cxb1=Q {[%clk 0:00:37.1]}
42. Rxb1 {[%clk 0:00:04.2]} 42... Rd3+ {[%clk 0:00:28.9]} 43. Kg4 {[%clk
0:00:04.1]} 43... Re8 {[%clk 0:00:21.1]} 44. f5 {[%clk 0:00:03.4]} 44... Re3
{[%clk 0:00:21.9]} 45. Kf4 {[%clk 0:00:02.6]} 45... Rxh3 {[%clk 0:00:21]} 46.
Bf2 {[%clk 0:00:01.9]} 46... d3 {[%clk 0:00:19.6]} 47. Rb7 {[%clk 0:00:02.1]}
47... Rh2 {[%clk 0:00:15.1]} 0-1

[Event "*** Titled Tuesday Blitz"]
[Site "Chess.com"]
[Date "2021.03.02"]
[Round "3"]
[White "RaphCamora"]
[Black "Marty435"]
[Result "0-1"]
[WhiteElo "2355"]
[BlackElo "2547"]
[TimeControl "180+1"]
[EndTime "10:28:55 PST"]
[Termination "Marty435 won on time"]

1. e4 {[%clk 0:03:00.9]} 1... c6 {[%clk 0:02:59.3]} 2. d4 {[%clk 0:03:00.3]}
2... d5 {[%clk 0:02:59.6]} 3. e5 {[%clk 0:03:00.5]} 3... Bf5 {[%clk 0:02:59.3]}
4. Nd2 {[%clk 0:03:00.6]} 4... e6 {[%clk 0:02:59]} 5. Nb3 {[%clk 0:03:00.8]}
5... a6 {[%clk 0:02:59.6]} 6. Nf3 {[%clk 0:02:58]} 6... c5 {[%clk 0:02:59.8]} 7.
dxc5 {[%clk 0:02:57.3]} 7... Bxc5 {[%clk 0:03:00.7]} 8. Nxc5 {[%clk 0:02:56.9]}
8... Qa5+ {[%clk 0:03:01.3]} 9. c3 {[%clk 0:02:57.4]} 9... Qxc5 {[%clk 0:03:02]}
10. Be3 {[%clk 0:02:57.6]} 10... Qc7 {[%clk 0:03:01.6]} 11. Be2 {[%clk
0:02:56.3]} 11... Ne7 {[%clk 0:03:01.7]} 12. O-O {[%clk 0:02:55.9]} 12... Nbc6
{[%clk 0:03:01.6]} 13. Re1 {[%clk 0:02:35.6]} 13... Bg4 {[%clk 0:02:39.1]} 14.
Bd4 {[%clk 0:02:32.3]} 14... Bxf3 {[%clk 0:02:32.3]} 15. Bxf3 {[%clk 0:02:27.6]}
15... Nxd4 {[%clk 0:02:27.9]} 16. cxd4 {[%clk 0:02:26.6]} 16... Rc8 {[%clk
0:02:26.6]} 17. Qa4+ {[%clk 0:01:49.1]} 17... Qd7 {[%clk 0:02:22.4]} 18. Qb3
{[%clk 0:00:55.4]} 18... O-O {[%clk 0:02:11.2]} 19. Be2 {[%clk 0:00:46.8]} 19...
Nf5 {[%clk 0:02:07.2]} 20. Red1 {[%clk 0:00:45.4]} 20... Rc7 {[%clk 0:02:03.8]}
21. Bd3 {[%clk 0:00:43.9]} 21... Ne7 {[%clk 0:02:00.5]} 22. Rac1 {[%clk
0:00:34.2]} 22... Rfc8 {[%clk 0:02:00.5]} 23. Rxc7 {[%clk 0:00:33.8]} 23... Rxc7
{[%clk 0:02:00.6]} 24. h4 {[%clk 0:00:29.5]} 24... Nc6 {[%clk 0:01:41.4]} 25.
Bb1 {[%clk 0:00:24.4]} 25... g6 {[%clk 0:01:26.3]} 26. h5 {[%clk 0:00:23.7]}
26... Qe7 {[%clk 0:01:23.1]} 27. Qf3 {[%clk 0:00:19.5]} 27... Qh4 {[%clk
0:01:14.3]} 28. hxg6 {[%clk 0:00:16.7]} 28... hxg6 {[%clk 0:01:15.2]} 29. g3
{[%clk 0:00:17]} 29... Qg5 {[%clk 0:01:05]} 30. Kg2 {[%clk 0:00:13.8]} 30... Kg7
{[%clk 0:01:03.5]} 31. Rh1 {[%clk 0:00:13.7]} 31... Nxd4 {[%clk 0:01:00.2]} 32.
Qa3 {[%clk 0:00:13.9]} 32... Qxe5 {[%clk 0:00:55.4]} 33. Qa5 {[%clk 0:00:09.2]}
33... Nc6 {[%clk 0:00:49.9]} 34. Qd2 {[%clk 0:00:08.8]} 34... Kf6 {[%clk
0:00:41.4]} 35. Rh7 {[%clk 0:00:06.9]} 35... Nd4 {[%clk 0:00:20.2]} 36. Qh6
{[%clk 0:00:05.9]} 36... Nf5 {[%clk 0:00:14.5]} 37. Bxf5 {[%clk 0:00:05.8]}
37... Qxf5 {[%clk 0:00:15.4]} 38. Qg7+ {[%clk 0:00:05.9]} 38... Ke7 {[%clk
0:00:15.9]} 39. Rh8 {[%clk 0:00:06.4]} 39... Qe4+ {[%clk 0:00:15.9]} 40. Kh2
{[%clk 0:00:06.8]} 40... Rc1 {[%clk 0:00:08.6]} 41. Qf8+ {[%clk 0:00:06.4]}
41... Kf6 {[%clk 0:00:08.4]} 42. Qd8+ {[%clk 0:00:05.9]} 42... Kf5 {[%clk
0:00:07.7]} 43. g4+ {[%clk 0:00:02.8]} 43... Qxg4 {[%clk 0:00:05.8]} 44. Qf6+
{[%clk 0:00:02.1]} 44... Kxf6 {[%clk 0:00:05.8]} 0-1

[Event "*** Titled Tuesday Blitz"]
[Site "Chess.com"]
[Date "2021.03.02"]
[Round "3"]
[White "Fraler15"]
[Black "zverr1"]
[Result "1-0"]
[WhiteElo "2281"]
[BlackElo "2468"]
[TimeControl "180+1"]
[EndTime "10:28:55 PST"]
[Termination "Fraler15 won by resignation"]

1. e4 {[%clk 0:03:00.9]} 1... f5 {[%clk 0:03:00.9]} 2. exf5 {[%clk 0:02:59.4]}
2... Nf6 {[%clk 0:02:54.3]} 3. Nc3 {[%clk 0:02:56.1]} 3... d5 {[%clk 0:02:53.5]}
4. d4 {[%clk 0:02:53.8]} 4... Bxf5 {[%clk 0:02:47.7]} 5. Nf3 {[%clk 0:02:53.4]}
5... e6 {[%clk 0:02:38.5]} 6. Bd3 {[%clk 0:02:49]} 6... Be7 {[%clk 0:02:20.8]}
7. O-O {[%clk 0:02:44.7]} 7... O-O {[%clk 0:02:18.8]} 8. Re1 {[%clk 0:02:40.8]}
8... Re8 {[%clk 0:02:03.3]} 9. Ne2 {[%clk 0:02:37.2]} 9... Ne4 {[%clk
0:01:52.5]} 10. Ng3 {[%clk 0:02:27.9]} 10... Nxg3 {[%clk 0:01:51.3]} 11. hxg3
{[%clk 0:02:15]} 11... Bf6 {[%clk 0:01:38.3]} 12. Qe2 {[%clk 0:01:48.2]} 12...
Nc6 {[%clk 0:01:33.2]} 13. c3 {[%clk 0:01:48]} 13... Bxd3 {[%clk 0:01:29.5]} 14.
Qxd3 {[%clk 0:01:48.7]} 14... Qd6 {[%clk 0:01:19.6]} 15. Bf4 {[%clk 0:01:47.3]}
15... e5 {[%clk 0:01:20.2]} 16. dxe5 {[%clk 0:01:47]} 16... Nxe5 {[%clk
0:01:21.1]} 17. Nxe5 {[%clk 0:01:43]} 17... Bxe5 {[%clk 0:01:22]} 18. Rxe5
{[%clk 0:01:31.5]} 18... Rxe5 {[%clk 0:01:22.9]} 19. Qd4 {[%clk 0:01:21.7]}
19... Rae8 {[%clk 0:01:04.3]} 20. Bxe5 {[%clk 0:01:20.4]} 20... Qxe5 {[%clk
0:00:49.7]} 21. Qxa7 {[%clk 0:01:20.2]} 21... b6 {[%clk 0:00:42.2]} 22. Qb7
{[%clk 0:01:16.7]} 22... h5 {[%clk 0:00:34.7]} 23. Rd1 {[%clk 0:01:12.9]} 23...
Rd8 {[%clk 0:00:33.5]} 24. Qc6 {[%clk 0:01:06.9]} 24... Kh7 {[%clk 0:00:25.7]}
25. Qb5 {[%clk 0:00:45.2]} 25... h4 {[%clk 0:00:16.4]} 26. Qd3+ {[%clk
0:00:43.9]} 26... Kh8 {[%clk 0:00:13.6]} 27. gxh4 {[%clk 0:00:41.2]} 27... c6
{[%clk 0:00:14]} 28. g3 {[%clk 0:00:36]} 28... Rf8 {[%clk 0:00:12.7]} 29. Qe3
{[%clk 0:00:30.8]} 29... Qf6 {[%clk 0:00:12.8]} 30. Qxb6 {[%clk 0:00:18.5]}
30... Qf3 {[%clk 0:00:13.4]} 31. Rf1 {[%clk 0:00:17.2]} 31... Qe2 {[%clk
0:00:12]} 32. Qc5 {[%clk 0:00:15.1]} 32... Rf3 {[%clk 0:00:10.4]} 33. Qb6 {[%clk
0:00:10.2]} 33... Rd3 {[%clk 0:00:09.3]} 34. a4 {[%clk 0:00:06.8]} 34... Rd2
{[%clk 0:00:07.6]} 35. a5 {[%clk 0:00:06.5]} 35... Rxb2 {[%clk 0:00:07.1]} 36.
Qd8+ {[%clk 0:00:06.2]} 36... Kh7 {[%clk 0:00:07]} 37. Qg5 {[%clk 0:00:04.2]}
37... Ra2 {[%clk 0:00:06.7]} 38. h5 {[%clk 0:00:03.8]} 38... Rxa5 {[%clk
0:00:05.7]} 39. Qg6+ {[%clk 0:00:04]} 39... Kh8 {[%clk 0:00:05.4]} 40. h6 {[%clk
0:00:03.1]} 40... Ra7 {[%clk 0:00:05.3]} 41. hxg7+ {[%clk 0:00:03]} 41... Rxg7
{[%clk 0:00:06.2]} 42. Qe8+ {[%clk 0:00:03.3]} 42... Kh7 {[%clk 0:00:05.5]} 43.
Qxe2 {[%clk 0:00:04.2]} 1-0

[Event "*** Titled Tuesday Blitz"]
[Site "Chess.com"]
[Date "2021.03.02"]
[Round "3"]
[White "Walter_White_Poland"]
[Black "anskam"]
[Result "1-0"]
[WhiteElo "2299"]
[BlackElo "1758"]
[TimeControl "180+1"]
[EndTime "10:28:55 PST"]
[Termination "Walter_White_Poland won on time"]

1. e4 {[%clk 0:03:00.9]} 1... c5 {[%clk 0:02:58.8]} 2. Nf3 {[%clk 0:02:59.5]}
2... d6 {[%clk 0:02:58.5]} 3. d4 {[%clk 0:02:59.4]} 3... cxd4 {[%clk 0:02:57.8]}
4. Nxd4 {[%clk 0:03:00.3]} 4... Nf6 {[%clk 0:02:56.6]} 5. Nc3 {[%clk 0:03:00.4]}
5... a6 {[%clk 0:02:56.5]} 6. Bg5 {[%clk 0:02:59.9]} 6... Nbd7 {[%clk
0:02:53.4]} 7. f4 {[%clk 0:02:59.3]} 7... Qc7 {[%clk 0:02:53.2]} 8. Qd2 {[%clk
0:02:51.7]} 8... e6 {[%clk 0:02:52.7]} 9. O-O-O {[%clk 0:02:49.4]} 9... Be7
{[%clk 0:02:47.4]} 10. Bd3 {[%clk 0:02:47.8]} 10... b5 {[%clk 0:02:44.1]} 11. f5
{[%clk 0:02:38.7]} 11... e5 {[%clk 0:02:41.2]} 12. Nf3 {[%clk 0:02:30.6]} 12...
Bb7 {[%clk 0:02:37.6]} 13. Rhe1 {[%clk 0:02:29.6]} 13... O-O-O {[%clk
0:02:35.3]} 14. Kb1 {[%clk 0:02:27.5]} 14... Nb6 {[%clk 0:02:27.4]} 15. Bxf6
{[%clk 0:01:53.5]} 15... Bxf6 {[%clk 0:02:25.4]} 16. a3 {[%clk 0:01:36.6]} 16...
Kb8 {[%clk 0:02:24.5]} 17. Bf1 {[%clk 0:01:26.8]} 17... Nc4 {[%clk 0:02:16.7]}
18. Bxc4 {[%clk 0:01:25.7]} 18... Qxc4 {[%clk 0:02:15.3]} 19. Nd5 {[%clk
0:01:23.3]} 19... Bxd5 {[%clk 0:02:03.2]} 20. Qxd5 {[%clk 0:01:21.6]} 20... Qc7
{[%clk 0:01:49.4]} 21. Re3 {[%clk 0:01:17.6]} 21... Rd7 {[%clk 0:01:38.4]} 22.
Rc3 {[%clk 0:01:16.5]} 22... Qb7 {[%clk 0:01:26.7]} 23. Qxb7+ {[%clk 0:01:14]}
23... Kxb7 {[%clk 0:01:26.2]} 24. Rd5 {[%clk 0:01:14]} 24... Rc8 {[%clk
0:01:19.6]} 25. Rxc8 {[%clk 0:01:13.1]} 25... Kxc8 {[%clk 0:01:18.7]} 26. g4
{[%clk 0:01:12.4]} 26... h6 {[%clk 0:01:17.9]} 27. b3 {[%clk 0:01:09.9]} 27...
Kb7 {[%clk 0:01:16.5]} 28. Kb2 {[%clk 0:01:09.7]} 28... Kc6 {[%clk 0:01:07.3]}
29. c3 {[%clk 0:01:08.7]} 29... g6 {[%clk 0:01:06.7]} 30. Kc2 {[%clk 0:01:07.5]}
30... Be7 {[%clk 0:01:03.7]} 31. Kd3 {[%clk 0:00:55]} 31... g5 {[%clk
0:00:59.5]} 32. c4 {[%clk 0:00:54.4]} 32... f6 {[%clk 0:00:54.2]} 33. Nd2 {[%clk
0:00:51.1]} 33... Rb7 {[%clk 0:00:52.6]} 34. Nb1 {[%clk 0:00:38.6]} 34... bxc4+
{[%clk 0:00:49.6]} 35. Kxc4 {[%clk 0:00:37.7]} 35... Rb5 {[%clk 0:00:47.1]} 36.
Nc3 {[%clk 0:00:35.2]} 36... Rc5+ {[%clk 0:00:40.8]} 37. Rxc5+ {[%clk
0:00:34.3]} 37... dxc5 {[%clk 0:00:40.3]} 38. Nd5 {[%clk 0:00:33.9]} 38... Bd8
{[%clk 0:00:39]} 39. Ne3 {[%clk 0:00:33.9]} 39... a5 {[%clk 0:00:34]} 40. Nd5
{[%clk 0:00:32.1]} 40... Kd6 {[%clk 0:00:22.3]} 41. Kb5 {[%clk 0:00:31.1]} 41...
a4 {[%clk 0:00:11.6]} 42. bxa4 {[%clk 0:00:28.5]} 42... c4 {[%clk 0:00:06.4]}
43. Kxc4 {[%clk 0:00:28]} 43... Ba5 {[%clk 0:00:05.2]} 44. Kb5 {[%clk
0:00:26.7]} 44... Bd8 {[%clk 0:00:02.8]} 45. a5 {[%clk 0:00:26.7]} 1-0

[Event "*** Titled Tuesday Blitz"]
[Site "Chess.com"]
[Date "2021.03.02"]
[Round "3"]
[White "PawnEatingZombie"]
[Black "agartha01"]
[Result "0-1"]
[WhiteElo "2198"]
[BlackElo "2497"]
[TimeControl "180+1"]
[EndTime "10:28:56 PST"]
[Termination "agartha01 won on time"]

1. d4 {[%clk 0:03:00.9]} 1... d5 {[%clk 0:02:59.2]} 2. c4 {[%clk 0:03:01.1]}
2... c6 {[%clk 0:02:59.5]} 3. Nc3 {[%clk 0:03:01.2]} 3... Nf6 {[%clk 0:03:00]}
4. e3 {[%clk 0:03:00.9]} 4... e6 {[%clk 0:02:57]} 5. Nf3 {[%clk 0:03:00.4]} 5...
Nbd7 {[%clk 0:02:57.2]} 6. Qc2 {[%clk 0:03:00.4]} 6... Be7 {[%clk 0:02:56]} 7.
Bd3 {[%clk 0:02:59.1]} 7... dxc4 {[%clk 0:02:55.1]} 8. Bxc4 {[%clk 0:02:59.1]}
8... b5 {[%clk 0:02:55.7]} 9. Bd3 {[%clk 0:02:58.8]} 9... Bb7 {[%clk 0:02:56]}
10. e4 {[%clk 0:02:56]} 10... h6 {[%clk 0:02:45.5]} 11. O-O {[%clk 0:02:53.5]}
11... a6 {[%clk 0:02:43.9]} 12. e5 {[%clk 0:02:51.2]} 12... Nd5 {[%clk
0:02:42.9]} 13. Nxd5 {[%clk 0:02:51.6]} 13... cxd5 {[%clk 0:02:43.6]} 14. Ne1
{[%clk 0:02:50.3]} 14... Rc8 {[%clk 0:02:33.1]} 15. Qe2 {[%clk 0:02:49.7]} 15...
Qb6 {[%clk 0:02:14.1]} 16. Be3 {[%clk 0:02:47.1]} 16... Nb8 {[%clk 0:02:02.1]}
17. f4 {[%clk 0:02:44.9]} 17... g6 {[%clk 0:02:00.9]} 18. Nf3 {[%clk 0:02:34.5]}
18... Nc6 {[%clk 0:01:59.7]} 19. g4 {[%clk 0:01:50.8]} 19... Nb4 {[%clk
0:01:50.8]} 20. f5 {[%clk 0:01:50.3]} 20... Nxd3 {[%clk 0:01:39.5]} 21. Qxd3
{[%clk 0:01:50.2]} 21... gxf5 {[%clk 0:01:12.7]} 22. gxf5 {[%clk 0:01:49.5]}
22... exf5 {[%clk 0:01:09.8]} 23. Kh1 {[%clk 0:01:33.3]} 23... f4 {[%clk
0:00:56.9]} 24. Bxf4 {[%clk 0:01:28]} 24... Qg6 {[%clk 0:00:56.1]} 25. Qxg6
{[%clk 0:01:01.2]} 25... fxg6 {[%clk 0:00:57]} 26. Rac1 {[%clk 0:01:00.6]} 26...
Rxc1 {[%clk 0:00:54.2]} 27. Bxc1 {[%clk 0:01:00]} 27... Bc8 {[%clk 0:00:49.1]}
28. Ne1 {[%clk 0:00:51.5]} 28... Bf5 {[%clk 0:00:47.7]} 29. Kg1 {[%clk
0:00:47.2]} 29... Kd7 {[%clk 0:00:45.7]} 30. Bf4 {[%clk 0:00:39.6]} 30... Be4
{[%clk 0:00:37.1]} 31. Ng2 {[%clk 0:00:36.4]} 31... g5 {[%clk 0:00:26.5]} 32.
Bg3 {[%clk 0:00:35.6]} 32... Rc8 {[%clk 0:00:24.4]} 33. Ne3 {[%clk 0:00:31.5]}
33... Ke6 {[%clk 0:00:21]} 34. Kf2 {[%clk 0:00:23.4]} 34... h5 {[%clk
0:00:16.7]} 35. h3 {[%clk 0:00:20.8]} 35... g4 {[%clk 0:00:12.6]} 36. hxg4
{[%clk 0:00:20.4]} 36... h4 {[%clk 0:00:12.1]} 37. Bh2 {[%clk 0:00:18.4]} 37...
Bg5 {[%clk 0:00:11.7]} 38. Ke2 {[%clk 0:00:17.9]} 38... h3 {[%clk 0:00:07.1]}
39. Rf2 {[%clk 0:00:06.6]} 39... b4 {[%clk 0:00:07.1]} 40. Nf5 {[%clk
0:00:02.5]} 40... Rc2+ {[%clk 0:00:06.1]} 41. Ke1 {[%clk 0:00:02.8]} 41... Rc1+
{[%clk 0:00:05.7]} 42. Ke2 {[%clk 0:00:03]} 42... Rb1 {[%clk 0:00:03.9]} 0-1

[Event "*** Titled Tuesday Blitz"]
[Site "Chess.com"]
[Date "2021.03.02"]
[Round "3"]
[White "InitiatingASC"]
[Black "Funo09"]
[Result "0-1"]
[WhiteElo "2438"]
[BlackElo "2731"]
[TimeControl "180+1"]
[EndTime "10:28:57 PST"]
[Termination "Funo09 won by resignation"]

1. d4 {[%clk 0:03:00.9]} 1... Nf6 {[%clk 0:02:04.5]} 2. c4 {[%clk 0:02:59.4]}
2... Nc6 {[%clk 0:02:04.9]} 3. Nf3 {[%clk 0:02:57.3]} 3... d6 {[%clk 0:02:05.2]}
4. Nc3 {[%clk 0:02:54.8]} 4... e5 {[%clk 0:02:05.7]} 5. dxe5 {[%clk 0:02:55.1]}
5... Nxe5 {[%clk 0:02:06.4]} 6. Nxe5 {[%clk 0:02:55]} 6... dxe5 {[%clk
0:02:07.3]} 7. Qxd8+ {[%clk 0:02:55.7]} 7... Kxd8 {[%clk 0:02:07.5]} 8. e3
{[%clk 0:02:51.9]} 8... c6 {[%clk 0:02:07.8]} 9. Be2 {[%clk 0:02:49.8]} 9... Kc7
{[%clk 0:02:06.6]} 10. O-O {[%clk 0:02:45.9]} 10... Be6 {[%clk 0:02:06.4]} 11.
Rd1 {[%clk 0:02:45.6]} 11... Bb4 {[%clk 0:02:05.6]} 12. Bd2 {[%clk 0:02:45]}
12... a5 {[%clk 0:02:05]} 13. Be1 {[%clk 0:02:42.4]} 13... Rhd8 {[%clk
0:02:03.2]} 14. f3 {[%clk 0:02:40.6]} 14... h5 {[%clk 0:02:00.5]} 15. Kf2 {[%clk
0:02:40.8]} 15... Nd7 {[%clk 0:01:49.6]} 16. Na4 {[%clk 0:02:31.9]} 16... Be7
{[%clk 0:01:42.1]} 17. Rac1 {[%clk 0:02:24.2]} 17... b6 {[%clk 0:01:34.7]} 18.
Bd2 {[%clk 0:02:02.3]} 18... Nc5 {[%clk 0:01:33]} 19. Nxc5 {[%clk 0:01:55.7]}
19... Bxc5 {[%clk 0:01:33.9]} 20. Bc3 {[%clk 0:01:54.8]} 20... f6 {[%clk
0:01:34.5]} 21. b3 {[%clk 0:01:46.1]} 21... Ba3 {[%clk 0:01:30.8]} 22. Rxd8
{[%clk 0:01:45.5]} 22... Rxd8 {[%clk 0:01:26.1]} 23. Rd1 {[%clk 0:01:46.2]}
23... Rh8 {[%clk 0:01:18.1]} 24. f4 {[%clk 0:01:38.7]} 24... exf4 {[%clk
0:01:16.5]} 25. exf4 {[%clk 0:01:38.5]} 25... Bc5+ {[%clk 0:01:16.5]} 26. Bd4
{[%clk 0:01:35.6]} 26... Bb4 {[%clk 0:01:04.7]} 27. Be3 {[%clk 0:01:31.9]} 27...
Bf5 {[%clk 0:01:02.8]} 28. Bd3 {[%clk 0:01:12.4]} 28... Be6 {[%clk 0:00:52.1]}
29. h3 {[%clk 0:01:08.7]} 29... h4 {[%clk 0:00:51.8]} 30. Be4 {[%clk 0:01:03.5]}
30... Bc8 {[%clk 0:00:42.8]} 31. f5 {[%clk 0:01:01.2]} 31... Re8 {[%clk
0:00:29.3]} 32. Bf4+ {[%clk 0:00:57.5]} 32... Kb7 {[%clk 0:00:29.2]} 33. Kf3
{[%clk 0:00:58]} 33... Bc5 {[%clk 0:00:26.4]} 34. Rd3 {[%clk 0:00:48.5]} 34...
g6 {[%clk 0:00:18.3]} 35. Rd2 {[%clk 0:00:21.5]} 35... gxf5 {[%clk 0:00:16.9]}
36. Bc2 {[%clk 0:00:21.7]} 36... Be6 {[%clk 0:00:15.8]} 37. Re2 {[%clk
0:00:21.7]} 37... Re7 {[%clk 0:00:15.5]} 38. Bc1 {[%clk 0:00:17.5]} 38... b5
{[%clk 0:00:14.4]} 39. cxb5 {[%clk 0:00:16.9]} 39... Bd5+ {[%clk 0:00:14.3]} 40.
Kf4 {[%clk 0:00:16.6]} 40... Rxe2 {[%clk 0:00:14]} 41. bxc6+ {[%clk 0:00:15.5]}
41... Kxc6 {[%clk 0:00:13.9]} 42. Bxf5 {[%clk 0:00:16.4]} 42... Rxg2 {[%clk
0:00:10.7]} 43. Bg4 {[%clk 0:00:15.3]} 43... Rf2+ {[%clk 0:00:08.4]} 44. Bf3
{[%clk 0:00:13.5]} 44... Rxf3+ {[%clk 0:00:08.3]} 0-1

[Event "*** Titled Tuesday Blitz"]
[Site "Chess.com"]
[Date "2021.03.02"]
[Round "3"]
[White "Stouuf"]
[Black "kingofthenil"]
[Result "0-1"]
[WhiteElo "2622"]
[BlackElo "2851"]
[TimeControl "180+1"]
[EndTime "10:28:58 PST"]
[Termination "kingofthenil won by checkmate"]

1. e4 {[%clk 0:03:00.3]} 1... Nc6 {[%clk 0:02:59.5]} 2. Nf3 {[%clk 0:02:51]}
2... d5 {[%clk 0:02:59.2]} 3. exd5 {[%clk 0:02:50.8]} 3... Qxd5 {[%clk
0:03:00.1]} 4. Nc3 {[%clk 0:02:51.2]} 4... Qh5 {[%clk 0:02:59.6]} 5. Nb5 {[%clk
0:02:51.5]} 5... Kd8 {[%clk 0:02:59.1]} 6. d4 {[%clk 0:02:30.1]} 6... Bg4 {[%clk
0:02:59]} 7. Nc3 {[%clk 0:02:21.9]} 7... Nf6 {[%clk 0:02:51.2]} 8. Be2 {[%clk
0:02:20.4]} 8... e6 {[%clk 0:02:49.3]} 9. Be3 {[%clk 0:02:14.6]} 9... Kc8 {[%clk
0:02:46.9]} 10. Qd2 {[%clk 0:02:14.2]} 10... Bb4 {[%clk 0:02:46.5]} 11. a3
{[%clk 0:02:08.5]} 11... Qa5 {[%clk 0:02:40.1]} 12. O-O {[%clk 0:02:04.3]} 12...
Bxc3 {[%clk 0:02:39.1]} 13. bxc3 {[%clk 0:02:00.2]} 13... Ne4 {[%clk 0:02:35]}
14. Qd3 {[%clk 0:01:59.2]} 14... Nxc3 {[%clk 0:02:29.3]} 15. Bd2 {[%clk
0:01:33.3]} 15... Nxe2+ {[%clk 0:02:27.8]} 16. Qxe2 {[%clk 0:01:34.2]} 16...
Bxf3 {[%clk 0:02:11.9]} 17. gxf3 {[%clk 0:01:17.3]} 17... Nxd4 {[%clk
0:02:09.1]} 18. Bxa5 {[%clk 0:01:09.2]} 18... Nxe2+ {[%clk 0:02:07.9]} 19. Kg2
{[%clk 0:01:05.7]} 19... Rd8 {[%clk 0:01:55.9]} 20. Rfe1 {[%clk 0:01:04.4]}
20... Nd4 {[%clk 0:01:45.4]} 21. Rac1 {[%clk 0:01:00.6]} 21... b6 {[%clk
0:01:44.3]} 22. Bc3 {[%clk 0:01:00.2]} 22... Kb7 {[%clk 0:01:44.4]} 23. Re4
{[%clk 0:00:58.3]} 23... Nf5 {[%clk 0:01:43.8]} 24. a4 {[%clk 0:00:57.2]} 24...
a5 {[%clk 0:01:44]} 25. f4 {[%clk 0:00:56.2]} 25... Rd5 {[%clk 0:01:42.6]} 26.
Kf3 {[%clk 0:00:56.2]} 26... Rad8 {[%clk 0:01:41]} 27. Rg1 {[%clk 0:00:55.3]}
27... Rc5 {[%clk 0:01:34.2]} 28. Bxg7 {[%clk 0:00:52.4]} 28... Rxc2 {[%clk
0:01:34.3]} 29. Bf6 {[%clk 0:00:48.1]} 29... Rdd2 {[%clk 0:01:33.8]} 30. Rf1
{[%clk 0:00:44]} 30... Ra2 {[%clk 0:01:16.4]} 31. Be5 {[%clk 0:00:35.3]} 31...
h5 {[%clk 0:01:09.6]} 32. h3 {[%clk 0:00:33.7]} 32... Rd3+ {[%clk 0:01:04.3]}
33. Kg2 {[%clk 0:00:33.2]} 33... Rda3 {[%clk 0:01:04.2]} 34. Rc1 {[%clk
0:00:28.2]} 34... c5 {[%clk 0:01:01.1]} 35. Rd1 {[%clk 0:00:28.4]} 35... Kc6
{[%clk 0:01:00.7]} 36. Rd8 {[%clk 0:00:26]} 36... Nh4+ {[%clk 0:00:58]} 37. Kg1
{[%clk 0:00:22.1]} 37... Rxa4 {[%clk 0:00:44.7]} 38. Re3 {[%clk 0:00:18.8]}
38... R4a3 {[%clk 0:00:39]} 39. Rd6+ {[%clk 0:00:16.2]} 39... Kb7 {[%clk
0:00:37.6]} 40. Rd7+ {[%clk 0:00:16.4]} 40... Ka6 {[%clk 0:00:38.3]} 41. Re4
{[%clk 0:00:15.1]} 41... f5 {[%clk 0:00:35.8]} 42. Rc4 {[%clk 0:00:13.6]} 42...
Nf3+ {[%clk 0:00:34]} 43. Kg2 {[%clk 0:00:13.8]} 43... Ne1+ {[%clk 0:00:33.6]}
44. Kg1 {[%clk 0:00:12.3]} 44... Nd3 {[%clk 0:00:34.5]} 45. Bb8 {[%clk
0:00:08.2]} 45... Nxf2 {[%clk 0:00:33.6]} 46. Rc1 {[%clk 0:00:07.3]} 46... Nxh3+
{[%clk 0:00:32.8]} 47. Kh1 {[%clk 0:00:07.4]} 47... Nf2+ {[%clk 0:00:30.2]} 48.
Kg1 {[%clk 0:00:07.8]} 48... Rb3 {[%clk 0:00:23.6]} 49. Ra7+ {[%clk 0:00:06.4]}
49... Kb5 {[%clk 0:00:23.6]} 50. Bc7 {[%clk 0:00:06.4]} 50... Ne4 {[%clk
0:00:22.3]} 51. Rb7 {[%clk 0:00:06.6]} 51... Rg3+ {[%clk 0:00:22.3]} 52. Kf1
{[%clk 0:00:06.5]} 52... Rf2+ {[%clk 0:00:22.1]} 53. Ke1 {[%clk 0:00:06.2]}
53... Rg1# {[%clk 0:00:23]} 0-1